[Event "Karel Janecek Open 2024"]
[Site "Prague"]
[Date "2024.02.28"]
[Round "1.8"]
[White "Pousada Garcia, Victor Daniel"]
[Black "Polak, Tomas"]
[Result "0-1"]
[ECO "B18"]
[WhiteElo "1965"]
[BlackElo "2525"]
[Annotator "TA"]
[PlyCount "54"]
[EventDate "2024.02.22"]
[EventType "swiss"]
[EventCountry "CZE"]
[SourceTitle "playchess.com"]
[Source "ChessBase"]
[SourceQuality "1"]
[TimeControl "40/5400+30:1800+30"]

{[%evp 14,54,4,-5,53,21,37,39,44,46,133,-76,-68,-68,-64,-84,-92,-90,-95,-200,-202,-539,-531,-529,-99,-87,-27,-26,-31,-465,-512,-521,-521,-511,-519,-518,-518,-632,-638,-606,-535,-741,-727]} 1. e4 {[%emt 0:00:05]} c6 {[%emt 0:00:21]} 2. d4 {[%emt 0:00:27]} d5 {[%emt 0:00:05]} 3. Nc3 {[%emt 0:00:44]} dxe4 {[%emt 0:00:06]} 4. Nxe4 {[%emt 0:00:05]} Bf5 {[%emt 0:00:06]} 5. Ng3 {[%emt 0:00:19]} Bg6 {[%emt 0:00:07]} 6. f4 {[%emt 0:00:05]} e6 {[%emt 0:00:12]} 7. Nf3 {[%emt 0:00:39]} Nd7 {[%emt 0:02:12]} 8. Bd3 {[%emt 0:00:14]} Qc7 {[%emt 0:02:17]} ({Better is} 8... Bd6 $11) 9. O-O {[%emt 0:00:48] With the idea f5.} O-O-O {[%emt 0:01:23]} 10. f5 {[%emt 0:03:06]} exf5 {[%emt 0:01:19] White is slightly better.} 11. Nxf5 {[%emt 0:00:10]} Ne7 {[%emt 0:02:36]} (11... f6 $14) 12. Ng5 $2 {[%emt 0:08:09] [#]} (12. Bf4 $1 $16 Qxf4 13. Ne5) 12... Nxf5 $17 {[%emt 0:03:03]} 13. Bxf5 {[%emt 0:00:15] aiming for Bh3.} Bd6 $1 {[%emt 0:00:21]} 14. h3 {[%emt 0:02:25] Bxg6 would now be deadly.} Bxf5 {[%emt 0:00:50]} 15. Rxf5 {[%emt 0:00:35]} Nf6 {[%emt 0:00:22]} 16. Qf3 {[%emt 0:02:56] [#]} (16. Qd3 $17 {was necessary.}) 16... Rhe8 $1 $19 {[%emt 0:06:31] Hoping for ...Re1+.} 17. Qd3 $2 {[%emt 0:31:39]} (17. Be3) 17... Bh2+ {[%emt 0:12:59]} 18. Kf1 {[%emt 0:12:43]} Nh5 $2 {[%emt 0:25:18]} (18... Qe7 $19 {[%csl Ge8][%cal Re7e1] has better winning chances.} 19. Bf4 Rxd4 (19... Bxf4 $2 20. Rxf4 Nd5 21. Qf5+ Kb8 22. Re4 $19) 20. Bxh2 Rxd3 21. cxd3 Qe2+ (21... Nd5 $2 22. Kg1 $19) 22. Kg1 Qxb2) 19. Rxf7 $17 {[%emt 0:06:06]} Rd7 {[%emt 0:07:38]} (19... Ng3+ $17 20. Kf2 Nh1+ 21. Kf1 Qa5 (21... Ng3+ 22. Kf2 $15)) 20. Rxd7 $11 {[%emt 0:06:28]} Qxd7 $40 {[%emt 0:01:09][%mdl 128] Black mounts an attack.} 21. Bd2 $2 {[%emt 0:05:25][%mdl 8192] Loses the game.} (21. Be3 $1 $15) 21... Ng3+ $19 {[%emt 0:02:58] Black is clearly winning.} 22. Kf2 {[%emt 0:00:25][%cal Oa1e1]} Re2+ {[%emt 0:00:58]} 23. Qxe2 {[%emt 0:04:29]} Nxe2 {[%emt 0:00:10]} 24. Kxe2 {[%emt 0:00:13]} Qxd4 {[%emt 0:00:30]} 25. Rf1 {[%emt 0:02:23] Strongly threatening Rf8+.} Qc4+ {[%emt 0:01:53]} 26. Kf2 {[%emt 0:00:29] [#]} Bg3+ $1 {[%emt 0:00:12][%mdl 512]} 27. Kg1 {[%emt 0:00:13]} (27. Kxg3 Qxf1) 27... Qd4+ {[%emt 0:00:09] Weighted Error Value: White=1.00/Black=0.42.  Loses game:     	White=1     	---        Missed win:     	---       	Black=1      Mistake:       	White=3     	Black=2      Inaccurate:     	White=1     	---        OK:         	White=2     	Black=6      Best:        	White=5     	Black=3      Strong:       	---       	Black=2} 0-1

[Event "Karel Janecek Open 2024"]
[Site "Prague"]
[Date "2024.02.28"]
[Round "1.9"]
[White "Popovic, Dusan"]
[Black "Topencik, Bruno"]
[Result "1-0"]
[ECO "A11"]
[WhiteElo "2504"]
[BlackElo "1874"]
[Annotator "TA"]
[PlyCount "85"]
[EventDate "2024.02.22"]
[EventType "swiss"]
[EventCountry "CZE"]
[SourceTitle "playchess.com"]
[Source "ChessBase"]
[SourceQuality "1"]
[TimeControl "40/5400+30:1800+30"]

{[%evp 12,85,37,43,37,6,1,13,10,2,18,11,24,1,14,8,17,2,22,0,13,15,34,40,28,33,114,114,111,105,102,98,113,110,184,145,177,158,179,57,71,65,72,58,166,164,195,202,182,81,84,33,183,191,174,170,435,436,440,439,560,584,581,566,624,423,422,419,751,732,975,987,6203,29967,5329,6589]} 1. Nf3 {[%emt 0:00:04]} Nf6 {[%emt 0:00:53]} 2. g3 {[%emt 0:00:06]} d5 {[%emt 0:00:45]} 3. Bg2 {[%emt 0:00:06]} Bf5 {[%emt 0:00:43]} 4. O-O {[%emt 0:00:21]} e6 {[%emt 0:01:24]} 5. d3 {[%emt 0:00:06]} h6 {[%emt 0:00:46]} 6. c4 {[%emt 0:03:48]} c6 {[%emt 0:02:50]} 7. Qb3 {[%emt 0:00:14]} Qb6 {[%emt 0:02:10]} 8. Be3 {[%emt 0:00:32]} Qxb3 {[%emt 0:01:30]} 9. axb3 {[%emt 0:00:05]} a6 $1 {[%emt 0:03:30] The position is equal.} 10. Bd2 {[%emt 0:00:13]} Nbd7 {[%emt 0:01:47]} 11. Bc3 {[%emt 0:02:21]} Be7 {[%emt 0:02:40]} 12. Nbd2 {[%emt 0:01:33][%cal Bb1d2,Bd2b3,Bb3a5][%mdl 32]} O-O {[%emt 0:02:33]} 13. b4 {[%emt 0:00:17]} Rfe8 {[%emt 0:03:40]} 14. Rfd1 {[%emt 0:18:39]} Bh7 {[%emt 0:04:25]} 15. Rac1 {[%emt 0:12:31]} Rad8 {[%emt 0:08:03]} 16. Nb3 {[%emt 0:03:50]} Bf8 {[%emt 0:09:13]} 17. Na5 {[%emt 0:03:36]} Rb8 {[%emt 0:03:11]} 18. Ne5 {[%emt 0:01:59]} Red8 {[%emt 0:07:16] [#]} (18... Be7 $14) 19. Nexc6 $1 {[%emt 0:14:11][%mdl 512] White is much more active.} bxc6 {[%emt 0:00:36]} 20. Nxc6 {[%emt 0:00:04]} Rdc8 {[%emt 0:15:34]} 21. Nxb8 {[%emt 0:00:14]} Rxb8 {[%emt 0:00:02]} 22. c5 {[%emt 0:01:13] Threatens to win with Ra1.} Rc8 {[%emt 0:05:12]} (22... Ne8 $16 {was worth a try.}) 23. e4 {[%emt 0:09:24]} Be7 {[%emt 0:03:57]} 24. Ra1 {[%emt 0:04:22]} Nb8 {[%emt 0:01:11]} 25. f3 {[%emt 0:06:45]} (25. Bxf6 $18 Bxf6 26. exd5 exd5 27. Bxd5 Bxb2 28. Ra2) 25... Ne8 $14 {[%emt 0:03:22]} 26. f4 {[%emt 0:05:46]} Nc7 {[%emt 0:03:53]} 27. Be5 {[%emt 0:01:37] Hoping for Bxc7.} Bf6 {[%emt 0:01:17]} (27... Nc6 $14) 28. Bxc7 $1 $18 {[%emt 0:01:56]} Bd4+ {[%emt 0:03:34]} 29. Kf1 {[%emt 0:01:43]} Rxc7 {[%emt 0:00:13] [#]} 30. exd5 {[%emt 0:00:04]} (30. b5 $1 $18) 30... exd5 $16 {[%emt 0:00:10] [#]} 31. Bxd5 {[%emt 0:00:18]} (31. b5 $1 $16) 31... Bxb2 {[%emt 0:01:05] This move loses the game for Black.} (31... Bf5 $1 $14) 32. Ra2 $18 {[%emt 0:02:36]} Bd4 {[%emt 0:02:00]} 33. Be4 {[%emt 0:02:47] Prevents Bf5.} Bxe4 $2 {[%emt 0:01:20]} (33... Rc8 34. Rc1 Bxe4 35. dxe4 Nc6) 34. dxe4 {[%emt 0:00:08]} Bf6 {[%emt 0:00:53] [#]} 35. b5 $1 {[%emt 0:00:53][%mdl 512]} axb5 {[%emt 0:02:15][%cal Ob8c6]} (35... Kh7 36. bxa6) 36. Ra8 {[%emt 0:00:07]} Rc8 {[%emt 0:01:36] [#]} 37. c6 $1 {[%emt 0:00:26][%mdl 512]} Kh7 {[%emt 0:00:17]} (37... g6 38. Rd5) 38. c7 {[%emt 0:01:11]} Rxc7 {[%emt 0:00:03]} 39. Rxb8 {[%emt 0:00:04]} Rc2 {[%emt 0:00:33]} (39... Be7 $142 40. Rxb5 Bf8) 40. e5 {[%emt 0:01:47]} Be7 {[%emt 0:00:13]} 41. Rd7 {[%emt 0:04:44] Strongly threatening f5.} Ba3 {[%emt 0:03:38]} 42. f5 {[%emt 0:03:18]} Bc5 {[%emt 0:03:09]} 43. Rxf7 {[%emt 0:00:18] Weighted Error Value: White=0.22 (precise) /Black=0.47.  Mistake:       	White=3     	Black=6      Inaccurate:     	White=2     	Black=1      OK:         	White=13    	Black=9      Best:        	White=3     	Black=1      Strong:       	White=1     	Black=1} 1-0

[Event "Karel Janecek Open 2024"]
[Site "Prague"]
[Date "2024.02.28"]
[Round "1.10"]
[White "Bezeyko, Olexander"]
[Black "Sadzikowski, Daniel"]
[Result "0-1"]
[ECO "C22"]
[WhiteElo "1851"]
[BlackElo "2497"]
[Annotator "TA"]
[PlyCount "102"]
[EventDate "2024.02.22"]
[EventType "swiss"]
[EventCountry "CZE"]
[SourceTitle "playchess.com"]
[Source "ChessBase"]
[SourceQuality "1"]
[TimeControl "40/5400+30:1800+30"]

{[%evp 9,102,-20,0,-20,-12,-26,-20,-11,-16,-31,-33,-36,-14,-11,-25,0,0,-38,0,-7,41,70,62,67,51,0,0,0,27,-46,-28,-21,-26,-25,-25,-21,-27,-37,-20,-26,-33,-34,-8,-36,-39,-40,-41,-48,-48,-117,-47,-76,-76,-130,-44,-160,-156,-150,-29,-23,-22,-22,-18,-18,-26,-22,-18,-392,-392,-385,-385,-375,-349,-29971,-29974,-29974,-29975,-29975,-29976,-29976,-29977,-29977,-29978,-29978,-29979,-29982,-29983,-29983,-29984,-29984,-29985,-29985,-29986,-29986,-29987]} 1. e4 {[%emt 0:00:02]} e5 {[%emt 0:00:26]} 2. d4 {[%emt 0:00:56]} exd4 {[%emt 0:00:36]} 3. Qxd4 {[%emt 0:00:04]} Nc6 {[%emt 0:00:22]} 4. Qc4 {[%emt 0:01:10]} Nf6 {[%emt 0:00:33]} 5. Nc3 {[%emt 0:00:12]} Bb4 {[%emt 0:01:27]} 6. Bd2 {[%emt 0:00:03]} O-O {[%emt 0:00:44]} 7. O-O-O {[%emt 0:00:04]} a5 {[%emt 0:00:04]} 8. f3 {[%emt 0:05:53] The position is equal.} (8. Nh3 {with more complications.} Re8 9. Ng5 Re7 10. f3) 8... Ne5 {[%emt 0:04:58]} 9. Qe2 {[%emt 0:00:58]} Re8 {[%emt 0:01:36]} 10. Qf2 {[%emt 0:08:24]} d5 {[%emt 0:05:07]} 11. exd5 {[%emt 0:17:13]} c6 {[%emt 0:43:01]} 12. Nge2 {[%emt 0:13:51]} Nxd5 {[%emt 0:24:51]} 13. Qd4 {[%emt 0:19:16] Against Nc4} Bf5 {[%emt 0:06:32]} (13... b6 {simplifies} 14. Nxd5 Bc5 15. Qf4 cxd5 16. Kb1 b5) 14. Ng3 {[%emt 0:02:23]} Qf6 {[%emt 0:02:41]} (14... Nxc3 $11 15. Bxc3 Bxc3 16. Qxc3 Qg5+ 17. Kb1 Bg6) 15. Nxd5 $14 {[%emt 0:02:03]} cxd5 {[%emt 0:00:25]} 16. Nxf5 {[%emt 0:01:33]} Qxf5 {[%emt 0:00:16]} 17. Bxb4 {[%emt 0:13:17]} (17. Qxd5 $2 Rad8 18. Qb5 (18. Qxb7 $2 Bxd2+ 19. Kb1 Rb8 $19) 18... Bxd2+ 19. Kb1 (19. Rxd2 $2 Qg5 $19) 19... g6 $19) (17. c3 $14) 17... axb4 $11 {[%emt 0:00:19]} 18. Qxd5 {[%emt 0:07:26][%cal Oc1b1]} Qg5+ {[%emt 0:00:35]} 19. Qd2 {[%emt 0:00:01]} (19. f4 $1 $11 Qxf4+ 20. Kb1) 19... Qxd2+ $1 $15 {[%emt 0:01:27]} 20. Kxd2 {[%emt 0:02:24]} (20. Rxd2 Rxa2 21. Rd1 (21. Kb1 Ra5 $17) 21... Ra1+ 22. Kd2 Rxd1+ 23. Kxd1 Ra8 $17) 20... Red8+ {[%emt 0:00:35]} (20... Rxa2 $2 21. Rb1 $19) 21. Kc1 {[%emt 0:00:26]} Rxd1+ {[%emt 0:00:10]} 22. Kxd1 {[%emt 0:00:18]} Rxa2 $11 {[%emt 0:00:07][%mdl 4096] Endgame. KRB-KRN} 23. b3 {[%emt 0:00:45] Dodges Nc4} Kf8 {[%emt 0:00:46]} 24. Kd2 {[%emt 0:00:17]} Ra1 {[%emt 0:00:10]} 25. h3 {[%emt 0:02:25]} Nc6 {[%emt 0:04:10]} 26. f4 {[%emt 0:01:24]} Nd4 {[%emt 0:00:24]} 27. g4 {[%emt 0:00:33] Inhibits Nf5.} b5 {[%emt 0:00:49]} 28. f5 {[%emt 0:00:34]} Ke7 {[%emt 0:00:31]} 29. h4 {[%emt 0:00:32]} ({Don't play} 29. Bg2 Nxb3+ 30. Ke3 (30. cxb3 Ra2+ 31. Kc1 Rxg2 $17) 30... Rxh1 31. Bxh1 Na5 $17) (29. Ke3 $1 $15 Rd1 (29... Nxc2+ 30. Kd3 $17) 30. Ke4) 29... h6 {[%emt 0:00:31] Black has more active pieces.} (29... Kd6 $17 {And now ...f6 would win.} 30. h5 Ke5) 30. Bg2 {[%emt 0:00:28]} Nxb3+ {[%emt 0:00:42]} 31. Ke3 {[%emt 0:00:21]} (31. cxb3 $142 Ra2+ 32. Kc1 Rxg2 33. Re1+ Kd6 34. Re4) 31... Ra2 {[%emt 0:00:31]} (31... Rxh1 $17 32. Bxh1 Na5) 32. Be4 {[%emt 0:00:37]} (32. Rb1 $15 Na5 (32... Rxc2 33. Rxb3 Rxg2 34. Rxb4 $11) 33. Be4) 32... Nc5 $17 {[%emt 0:00:12] aiming for ...Nxe4.} 33. Re1 {[%emt 0:00:31]} Kf6 {[%emt 0:00:41]} (33... Nxe4 $17 34. Kxe4 Kd6 (34... Rxc2 $2 {loses.} 35. Kd3+ Kf6 36. Kxc2 $18)) 34. Kf4 $11 {[%emt 0:00:20]} g5+ {[%emt 0:00:30]} 35. fxg6 {[%emt 0:00:06]} fxg6 {[%emt 0:00:20]} 36. g5+ {[%emt 0:00:34]} hxg5+ {[%emt 0:00:01]} 37. hxg5+ {[%emt 0:00:03]} Kg7 {[%emt 0:00:08] ...Nxe4 would now be deadly.} 38. Ke5 {[%emt 0:01:29][%mdl 8192] This costs White the game.} (38. Rd1 $11 {and White is okay.}) 38... Nxe4 $19 {[%emt 0:00:44]} 39. Rxe4 {[%emt 0:00:03]} Rxc2 {[%emt 0:00:11]} 40. Rxb4 {[%emt 0:00:21] KR-KR} Rc5+ {[%emt 0:00:12]} 41. Kf4 $2 {[%emt 0:30:03] [#]} (41. Kd4 $19 Rxg5 42. Rb3) 41... Rc4+ {[%emt 0:30:26] Black mates.} 42. Rxc4 {[%emt 0:00:03]} bxc4 {[%emt 0:00:05] KPP-KP} 43. Ke4 {[%emt 0:00:02]} Kf7 {[%emt 0:00:08]} 44. Kd4 {[%emt 0:00:02]} Ke6 {[%emt 0:00:05]} 45. Kxc4 {[%emt 0:00:01] KP-KP} Kf5 {[%emt 0:00:05]} 46. Kd3 {[%emt 0:00:12]} Kxg5 {[%emt 0:00:04]} 47. Ke3 {[%emt 0:00:16]} Kg4 {[%emt 0:00:07]} 48. Kf2 {[%emt 0:00:03] [#]} Kh3 $1 {[%emt 0:00:06]} 49. Kg1 {[%emt 0:00:07]} Kg3 {[%emt 0:00:09]} 50. Kf1 {[%emt 0:00:35]} g5 {[%emt 0:00:29]} 51. Kg1 {[%emt 0:00:02]} g4 {[%emt 0:00:10] Weighted Error Value: White=0.38/Black=0.15 (very precise) .  Loses game:     	White=1     	---        Mistake:       	White=6     	Black=4      Inaccurate:     	White=3     	Black=3      OK:         	White=6     	Black=16     Best:        	White=6     	Black=6      Strong:       	---       	Black=1} 0-1

[Event "Karel Janecek Open 2024"]
[Site "Prague"]
[Date "2024.02.28"]
[Round "1.11"]
[White "Kraus, Tomas"]
[Black "Hanak, Tomas"]
[Result "1-0"]
[ECO "A04"]
[WhiteElo "2484"]
[BlackElo "1969"]
[Annotator "TA"]
[PlyCount "117"]
[EventDate "2024.02.22"]
[EventType "swiss"]
[EventCountry "CZE"]
[SourceTitle "playchess.com"]
[Source "ChessBase"]
[SourceQuality "1"]
[TimeControl "40/5400+30:1800+30"]

{[%evp 10,117,55,21,82,85,88,65,203,192,189,79,122,108,108,113,350,362,337,359,329,258,280,252,256,248,255,247,291,290,284,282,303,298,308,304,295,291,318,301,320,345,336,330,340,342,342,332,363,343,354,325,383,373,419,407,455,455,468,452,473,459,514,513,534,459,458,465,523,465,549,456,548,529,559,575,561,516,536,472,493,461,470,429,465,359,552,509,558,550,534,529,541,513,503,373,557,552,601,580,892,838,842,817,1227,1103,1179,1244,1438,1204]} 1. Nf3 {[%emt 0:02:41]} e6 {[%emt 0:01:41]} 2. g3 {[%emt 0:01:32]} f5 {[%emt 0:01:18]} 3. Bg2 {[%emt 0:02:25]} Nf6 {[%emt 0:00:12]} 4. O-O {[%emt 0:04:43]} d5 {[%emt 0:02:38]} 5. d3 {[%emt 0:01:31]} Be7 {[%emt 0:05:10]} 6. Nbd2 {[%emt 0:06:49][%cal Oe2e4]} b6 {[%emt 0:14:51] [#]} (6... Nc6 $11) 7. e4 $1 $16 {[%emt 0:04:26]} O-O {[%emt 0:04:14]} (7... fxe4 8. dxe4) 8. Re1 {[%emt 0:10:48]} Bb7 {[%emt 0:16:02]} (8... dxe4 $14 9. dxe4 f4) 9. exf5 $18 {[%emt 0:08:05]} exf5 {[%emt 0:00:10]} 10. Qe2 {[%emt 0:02:04]} (10. Nd4 $18) 10... Bd6 {[%emt 0:06:25]} 11. Qe6+ {[%emt 0:06:48]} Kh8 {[%emt 0:00:08]} 12. Ng5 {[%emt 0:00:52] Nf7+ would now be deadly. White is much more active. The black rooks are passive.} Nbd7 $2 {[%emt 0:10:54] [#]} (12... Qd7 $16 13. Ndf3 Bc8) 13. Ndf3 $1 {[%emt 0:08:56]} (13. Qxf5 Bc8 $16) (13. Nf7+ Rxf7 14. Qxf7 Ne5 15. Rxe5 (15. Qe6 Bc8 $15) 15... Bxe5 $16) 13... Qe8 {[%emt 0:13:09]} 14. Qxf5 {[%emt 0:01:31]} Qh5 {[%emt 0:03:28]} 15. Qh3 {[%emt 0:01:57]} h6 {[%emt 0:11:03]} 16. Qxh5 {[%emt 0:04:14]} Nxh5 {[%emt 0:00:06]} 17. Ne6 {[%emt 0:00:21]} Rf7 {[%emt 0:03:59]} 18. Bd2 {[%emt 0:02:53]} Nf8 {[%emt 0:02:11]} 19. Ne5 {[%emt 0:02:05]} Bxe5 {[%emt 0:01:23]} 20. Rxe5 {[%emt 0:00:13]} Nxe6 {[%emt 0:00:48]} 21. Rxe6 {[%emt 0:00:02]} (21. Rxh5 Nd4 22. Rh4 (22. Bxd5 Bxd5 23. Rxd5 Nf3+ 24. Kg2 Nxd2 $17) 22... c5 $16) 21... Raf8 {[%emt 0:00:36][%cal Ba8f8,Bf8f7,Bf7b7,Bb7d7,Bd7d6][%mdl 32]} 22. f4 {[%emt 0:00:18]} Nf6 {[%emt 0:00:31]} 23. Rae1 {[%emt 0:01:01]} c5 {[%emt 0:00:32]} 24. Re7 {[%emt 0:01:13]} Ng8 {[%emt 0:00:30]} 25. Rxf7 {[%emt 0:02:17]} Rxf7 {[%emt 0:00:04]} 26. Re8 {[%emt 0:03:27]} d4 {[%emt 0:00:19]} 27. Bxb7 {[%emt 0:03:01]} Rxb7 {[%emt 0:00:05][%mdl 4096] Endgame. KRB-KRN} 28. Kf2 {[%emt 0:00:28]} Kh7 {[%emt 0:00:51]} 29. Kf3 {[%emt 0:00:45]} Nf6 {[%emt 0:00:39]} 30. Re5 {[%emt 0:00:03]} Rd7 {[%emt 0:01:01]} 31. g4 {[%emt 0:03:36]} Nd5 {[%emt 0:00:31]} 32. a3 {[%emt 0:00:44]} Kg8 {[%emt 0:00:30]} 33. h4 {[%emt 0:01:02]} Kf7 {[%emt 0:00:17]} 34. f5 {[%emt 0:04:17][%cal Bf4f5,Bf5f6][%mdl 32]} Rd6 {[%emt 0:00:41]} 35. g5 {[%emt 0:01:34]} hxg5 {[%emt 0:00:14]} 36. hxg5 {[%emt 0:00:00]} g6 {[%emt 0:00:47]} 37. f6 {[%emt 0:06:13]} Rd7 {[%emt 0:00:05]} 38. Ke4 {[%emt 0:02:24]} Nc7 {[%emt 0:00:16]} 39. b3 {[%emt 0:00:57]} Kf8 {[%emt 0:01:09]} 40. Bf4 {[%emt 0:01:22][%cal Oe5e7] Black must now prevent Re7!} (40. b4 cxb4 41. axb4 Kf7 $16) 40... Kf7 {[%emt 0:00:31]} 41. a4 {[%emt 0:08:50] Prevents Nb5.} Na6 {[%emt 0:16:32]} 42. Bd2 {[%emt 0:01:22]} Nc7 {[%emt 0:00:18]} 43. Kf3 {[%emt 0:03:10]} Ne6 {[%emt 0:02:43]} 44. Kg4 {[%emt 0:01:33]} Rd8 {[%emt 0:01:49]} 45. Bf4 {[%emt 0:02:55]} Rd7 {[%emt 0:01:56]} 46. Bd2 {[%emt 0:04:52]} Rd8 {[%emt 0:01:46]} 47. b4 {[%emt 0:01:48][%cal Bb3b4,Bb4b5][%mdl 32]} Rc8 {[%emt 0:07:43]} (47... cxb4 {might work better.} 48. a5 (48. Bxb4 Rh8 $16) 48... Rc8 49. axb6 (49. Bxb4 Rxc2 50. Rd5 Rc7 $18) 49... axb6) 48. b5 {[%emt 0:02:21]} Rd8 {[%emt 0:00:48]} 49. Bf4 {[%emt 0:00:54]} Rd7 {[%emt 0:00:50]} 50. Bh2 {[%emt 0:02:15]} Rd8 {[%emt 0:00:35]} 51. Bg3 {[%emt 0:00:05]} Rd7 {[%emt 0:00:14]} 52. Kf3 {[%emt 0:00:12] Strongly threatening Ke4.} Rd8 {[%emt 0:00:45]} (52... c4 {was worth a try.} 53. dxc4 d3 54. cxd3 Rxd3+ 55. Kg2 Rd2+ 56. Bf2 Rc2) 53. Ke4 {[%emt 0:00:01] White is clearly winning.} Rd7 {[%emt 0:00:29]} 54. Rd5 {[%emt 0:02:36]} Rxd5 {[%emt 0:00:27]} 55. Kxd5 {[%emt 0:00:01]} Nxg5 {[%emt 0:00:09]} 56. Bb8 {[%emt 0:00:54]} Nf3 {[%emt 0:00:55]} 57. Bxa7 {[%emt 0:01:01]} g5 {[%emt 0:00:29][%cal Bg6g5,Bg5g4][%mdl 32]} 58. Bxb6 {[%emt 0:01:04]} g4 {[%emt 0:00:07]} 59. Bc7 {[%emt 0:00:37] Weighted Error Value: White=0.23 (precise) /Black=0.40.  Loses game:     	---       	Black=1      Mistake:       	White=1     	Black=3      Inaccurate:     	---       	Black=2      OK:         	White=23    	Black=8      Best:        	White=1     	Black=1      Strong:       	White=1     	---} (59. Kxc5 $2 {perishes.} g3 60. a5 g2 $19 (60... Kxf6 $2 {is the wrong capture.} 61. a6 $18)) 1-0